[Event "Late-Titled-Tuesday-Blitz-January-30-2024"]
[Site "Chess.com"]
[Date "2024.01.30"]
[Round "6"]
[White "BardArtem"]
[Black "santosalberto1987"]
[Result "1-0"]
[WhiteElo "2763"]
[BlackElo "2530"]
[TimeControl "180+1"]
[EndTime "15:03:21 PST"]
[Termination "BardArtem won by resignation"]

1. e4 {[%clk 0:02:57.7]} 1... e6 {[%clk 0:03:00]} 2. d4 {[%clk 0:02:57.5]} 2...
d5 {[%clk 0:03:00.6]} 3. Nc3 {[%clk 0:02:58]} 3... Nf6 {[%clk 0:03:00.9]} 4.
exd5 {[%clk 0:02:57.1]} 4... exd5 {[%clk 0:03:00.4]} 5. Bg5 {[%clk 0:02:57.4]}
5... Be7 {[%clk 0:03:00.2]} 6. Qd2 {[%clk 0:02:53.2]} 6... O-O {[%clk
0:02:59.6]} 7. O-O-O {[%clk 0:02:53.2]} 7... Re8 {[%clk 0:02:59.7]} 8. Nf3
{[%clk 0:02:52.9]} 8... c6 {[%clk 0:02:58.3]} 9. Bd3 {[%clk 0:02:53]} 9... b5
{[%clk 0:02:49.2]} 10. Rde1 {[%clk 0:02:50.3]} 10... Nbd7 {[%clk 0:02:45.2]} 11.
h4 {[%clk 0:02:42.7]} 11... b4 {[%clk 0:02:43.1]} 12. Nd1 {[%clk 0:02:41.2]}
12... a5 {[%clk 0:02:32.5]} 13. Ne3 {[%clk 0:02:39.4]} 13... Ba6 {[%clk
0:02:29.6]} 14. Bxa6 {[%clk 0:02:34.9]} 14... Rxa6 {[%clk 0:02:30.5]} 15. Nf5
{[%clk 0:02:35.7]} 15... Bf8 {[%clk 0:02:30.5]} 16. Qd3 {[%clk 0:02:17.8]} 16...
Ra8 {[%clk 0:02:25.9]} 17. Ne5 {[%clk 0:02:17.1]} 17... Qc7 {[%clk 0:02:14.8]}
18. Qg3 {[%clk 0:01:55.1]} 18... Ne4 {[%clk 0:01:56.4]} 19. Rxe4 {[%clk
0:01:53.6]} 19... dxe4 {[%clk 0:01:56.4]} 20. Nh6+ {[%clk 0:01:53.5]} 1-0

[Event "Late-Titled-Tuesday-Blitz-January-30-2024"]
[Site "Chess.com"]
[Date "2024.01.30"]
[Round "6"]
[White "KamlaPasand"]
[Black "PNEPaul"]
[Result "1-0"]
[WhiteElo "2480"]
[BlackElo "1864"]
[TimeControl "180+1"]
[EndTime "15:03:39 PST"]
[Termination "KamlaPasand won by resignation"]

1. e4 {[%clk 0:03:00.9]} 1... e5 {[%clk 0:02:53.4]} 2. Nf3 {[%clk 0:03:00]} 2...
Nc6 {[%clk 0:02:52.5]} 3. Bc4 {[%clk 0:02:59.7]} 3... Be7 {[%clk 0:02:52.2]} 4.
Nc3 {[%clk 0:02:59.8]} 4... Nf6 {[%clk 0:02:52.4]} 5. d4 {[%clk 0:02:59]} 5...
d6 {[%clk 0:02:46.5]} 6. dxe5 {[%clk 0:02:57.5]} 6... Nxe5 {[%clk 0:02:45.3]} 7.
Bb3 {[%clk 0:02:55.4]} 7... Nxf3+ {[%clk 0:02:35.9]} 8. Qxf3 {[%clk 0:02:55.1]}
8... O-O {[%clk 0:02:35.8]} 9. O-O {[%clk 0:02:54.9]} 9... Be6 {[%clk
0:02:35.9]} 10. h3 {[%clk 0:02:52.4]} 10... Bxb3 {[%clk 0:02:35.5]} 11. axb3
{[%clk 0:02:53.3]} 11... c6 {[%clk 0:02:33.9]} 12. Bf4 {[%clk 0:02:51.7]} 12...
Qb6 {[%clk 0:02:15.4]} 13. Rad1 {[%clk 0:02:48.6]} 13... Rad8 {[%clk 0:02:11.5]}
14. Rd2 {[%clk 0:02:47.4]} 14... d5 {[%clk 0:01:27.3]} 15. exd5 {[%clk
0:02:43.2]} 15... Nxd5 {[%clk 0:01:27.1]} 16. Nxd5 {[%clk 0:02:43.3]} 16... Rxd5
{[%clk 0:01:24.7]} 17. Rxd5 {[%clk 0:02:43.2]} 17... cxd5 {[%clk 0:01:24.7]} 18.
Qxd5 {[%clk 0:02:43.8]} 18... Bf6 {[%clk 0:01:24.8]} 19. c3 {[%clk 0:02:25.9]}
19... Rd8 {[%clk 0:01:18.9]} 20. Qc4 {[%clk 0:02:24.4]} 20... h6 {[%clk
0:01:06.3]} 21. Bc7 {[%clk 0:02:23.3]} 1-0

[Event "Late-Titled-Tuesday-Blitz-January-30-2024"]
[Site "Chess.com"]
[Date "2024.01.30"]
[Round "6"]
[White "GAO"]
[Black "finec2"]
[Result "1-0"]
[WhiteElo "2393"]
[BlackElo "2224"]
[TimeControl "180+1"]
[EndTime "15:03:52 PST"]
[Termination "GAO won by resignation"]

1. Nf3 {[%clk 0:02:59.8]} 1... Nf6 {[%clk 0:02:59.8]} 2. b3 {[%clk 0:02:59]}
2... g6 {[%clk 0:02:59.5]} 3. Bb2 {[%clk 0:02:59.4]} 3... Bg7 {[%clk 0:03:00.3]}
4. g3 {[%clk 0:02:58.8]} 4... O-O {[%clk 0:03:00.1]} 5. Bg2 {[%clk 0:02:58.7]}
5... c5 {[%clk 0:03:00.2]} 6. O-O {[%clk 0:02:57.4]} 6... Nc6 {[%clk 0:03:00.3]}
7. d3 {[%clk 0:02:54.5]} 7... d5 {[%clk 0:02:59.6]} 8. Nbd2 {[%clk 0:02:54.8]}
8... b6 {[%clk 0:02:55.2]} 9. e4 {[%clk 0:02:54.8]} 9... Bb7 {[%clk 0:02:49.8]}
10. exd5 {[%clk 0:02:53.9]} 10... Nxd5 {[%clk 0:02:47.6]} 11. Bxg7 {[%clk
0:02:54.8]} 11... Kxg7 {[%clk 0:02:48]} 12. Nc4 {[%clk 0:02:54.4]} 12... f6
{[%clk 0:02:44.5]} 13. d4 {[%clk 0:02:49.1]} 13... cxd4 {[%clk 0:01:39.5]} 14.
Nxd4 {[%clk 0:02:50]} 14... Nxd4 {[%clk 0:01:39.4]} 15. Qxd4 {[%clk 0:02:48.5]}
15... e5 {[%clk 0:01:39.1]} 16. Qd2 {[%clk 0:02:39.4]} 16... b5 {[%clk
0:00:54.9]} 17. Na5 {[%clk 0:02:31.8]} 1-0

[Event "Late-Titled-Tuesday-Blitz-January-30-2024"]
[Site "Chess.com"]
[Date "2024.01.30"]
[Round "6"]
[White "vladislavkovalev"]
[Black "topalovkramnik"]
[Result "1-0"]
[WhiteElo "2879"]
[BlackElo "2473"]
[TimeControl "180+1"]
[EndTime "15:03:56 PST"]
[Termination "vladislavkovalev won by resignation"]

1. e4 {[%clk 0:03:00.9]} 1... c5 {[%clk 0:02:50.8]} 2. Nf3 {[%clk 0:03:01.3]}
2... d6 {[%clk 0:02:50.8]} 3. Bb5+ {[%clk 0:03:01.5]} 3... Nd7 {[%clk
0:02:50.3]} 4. O-O {[%clk 0:03:01.3]} 4... g6 {[%clk 0:02:48.3]} 5. Re1 {[%clk
0:02:51.6]} 5... Bg7 {[%clk 0:02:48]} 6. c3 {[%clk 0:02:49.7]} 6... a6 {[%clk
0:02:46.9]} 7. Bf1 {[%clk 0:02:50.1]} 7... e5 {[%clk 0:02:44.5]} 8. d4 {[%clk
0:02:50.1]} 8... Ne7 {[%clk 0:02:44]} 9. dxe5 {[%clk 0:02:44.6]} 9... Nxe5
{[%clk 0:02:43.7]} 10. Nxe5 {[%clk 0:02:43.8]} 10... dxe5 {[%clk 0:02:44.6]} 11.
Qxd8+ {[%clk 0:02:43.2]} 11... Kxd8 {[%clk 0:02:45.5]} 12. a4 {[%clk 0:02:37.3]}
12... Be6 {[%clk 0:02:44.2]} 13. Be3 {[%clk 0:02:35.5]} 13... Rc8 {[%clk
0:02:42.1]} 14. Rd1+ {[%clk 0:02:31.3]} 14... Ke8 {[%clk 0:02:41.7]} 15. Nd2
{[%clk 0:02:31.1]} 15... h5 {[%clk 0:02:22.4]} 16. Nc4 {[%clk 0:02:22]} 16...
Bxc4 {[%clk 0:02:21.4]} 17. Bxc4 {[%clk 0:02:22.9]} 17... Rc6 {[%clk 0:02:17.1]}
18. f3 {[%clk 0:02:15.8]} 18... Bh6 {[%clk 0:02:16.5]} 19. Bf2 {[%clk
0:02:16.5]} 19... h4 {[%clk 0:02:00.5]} 20. Rd3 {[%clk 0:02:15.3]} 20... Rc7
{[%clk 0:01:35]} 21. Rad1 {[%clk 0:02:14.2]} 21... Kf8 {[%clk 0:01:33]} 22. Rd7
{[%clk 0:02:09.4]} 1-0

[Event "Late-Titled-Tuesday-Blitz-January-30-2024"]
[Site "Chess.com"]
[Date "2024.01.30"]
[Round "6"]
[White "LastHeroJr"]
[Black "rcmz"]
[Result "1-0"]
[WhiteElo "2491"]
[BlackElo "2146"]
[TimeControl "180+1"]
[EndTime "15:04:01 PST"]
[Termination "LastHeroJr won by resignation"]

1. e4 {[%clk 0:03:00.9]} 1... Nf6 {[%clk 0:02:58.8]} 2. e5 {[%clk 0:03:00.4]}
2... Nd5 {[%clk 0:02:58.5]} 3. d4 {[%clk 0:03:00.4]} 3... d6 {[%clk 0:02:58.5]}
4. Nf3 {[%clk 0:03:00.1]} 4... Nc6 {[%clk 0:02:52.1]} 5. c4 {[%clk 0:02:33.9]}
5... Nb6 {[%clk 0:02:50.6]} 6. Be3 {[%clk 0:02:27.8]} 6... dxe5 {[%clk
0:02:47.7]} 7. d5 {[%clk 0:02:23.6]} 7... Nb4 {[%clk 0:02:07.1]} 8. a3 {[%clk
0:02:02]} 8... Na6 {[%clk 0:02:04.1]} 9. Nxe5 {[%clk 0:02:01.9]} 9... Bf5 {[%clk
0:01:54.5]} 10. Qf3 {[%clk 0:01:54.4]} 10... Bg6 {[%clk 0:01:50.7]} 11. Bd3
{[%clk 0:01:51.6]} 11... f6 {[%clk 0:01:02.6]} 12. Nxg6 {[%clk 0:01:45.5]} 12...
hxg6 {[%clk 0:01:01.1]} 13. Bxg6+ {[%clk 0:01:46.4]} 13... Kd7 {[%clk
0:01:00.4]} 14. Qf5+ {[%clk 0:01:43.4]} 1-0

[Event "Late-Titled-Tuesday-Blitz-January-30-2024"]
[Site "Chess.com"]
[Date "2024.01.30"]
[Round "6"]
[White "pr1105"]
[Black "ArtemDyachuk"]
[Result "0-1"]
[WhiteElo "2435"]
[BlackElo "2640"]
[TimeControl "180+1"]
[EndTime "15:04:14 PST"]
[Termination "ArtemDyachuk won by checkmate"]

1. e4 {[%clk 0:02:55.2]} 1... c5 {[%clk 0:02:54.7]} 2. Nf3 {[%clk 0:02:55.2]}
2... d6 {[%clk 0:02:55.1]} 3. d4 {[%clk 0:02:55.7]} 3... cxd4 {[%clk 0:02:56]}
4. Nxd4 {[%clk 0:02:56.4]} 4... Nf6 {[%clk 0:02:56.6]} 5. Nc3 {[%clk 0:02:57.1]}
5... a6 {[%clk 0:02:57.3]} 6. f3 {[%clk 0:02:57.8]} 6... e5 {[%clk 0:02:51.3]}
7. Nb3 {[%clk 0:02:58.1]} 7... Be6 {[%clk 0:02:51.8]} 8. Be3 {[%clk 0:02:58.8]}
8... Be7 {[%clk 0:02:52]} 9. Qd2 {[%clk 0:02:59.4]} 9... d5 {[%clk 0:02:52.4]}
10. exd5 {[%clk 0:02:54.7]} 10... Nxd5 {[%clk 0:02:53.3]} 11. Nxd5 {[%clk
0:02:55]} 11... Qxd5 {[%clk 0:02:52.5]} 12. Qxd5 {[%clk 0:02:55.2]} 12... Bxd5
{[%clk 0:02:53.4]} 13. O-O-O {[%clk 0:02:55.7]} 13... Be6 {[%clk 0:02:53.1]} 14.
Na5 {[%clk 0:02:55.9]} 14... b5 {[%clk 0:02:43.3]} 15. Bd3 {[%clk 0:02:36.1]}
15... Nd7 {[%clk 0:02:36.1]} 16. Be4 {[%clk 0:02:31.6]} 16... Rc8 {[%clk
0:02:13.5]} 17. Bb7 {[%clk 0:02:21.6]} 17... Rc7 {[%clk 0:02:13]} 18. Bxa6
{[%clk 0:02:08.9]} 18... Bf5 {[%clk 0:01:51.3]} 19. c3 {[%clk 0:01:31.3]} 19...
O-O {[%clk 0:01:50]} 20. Bxb5 {[%clk 0:01:25.5]} 20... Nc5 {[%clk 0:01:50.3]}
21. a4 {[%clk 0:01:02.9]} 21... Ra8 {[%clk 0:01:45]} 22. Nc6 {[%clk 0:01:03]}
22... Nb3# {[%clk 0:01:44.2]} 0-1

[Event "Late-Titled-Tuesday-Blitz-January-30-2024"]
[Site "Chess.com"]
[Date "2024.01.30"]
[Round "6"]
[White "Hirna2005"]
[Black "noblerone"]
[Result "1-0"]
[WhiteElo "2288"]
[BlackElo "2448"]
[TimeControl "180+1"]
[EndTime "15:04:17 PST"]
[Termination "Hirna2005 won by resignation"]

1. e4 {[%clk 0:03:00.9]} 1... c5 {[%clk 0:02:59.6]} 2. c3 {[%clk 0:03:00.2]}
2... d5 {[%clk 0:02:59]} 3. exd5 {[%clk 0:03:00]} 3... Qxd5 {[%clk 0:02:59.9]}
4. Nf3 {[%clk 0:02:59.9]} 4... Nf6 {[%clk 0:02:59.9]} 5. Na3 {[%clk 0:02:57.7]}
5... Nc6 {[%clk 0:02:58.4]} 6. Bc4 {[%clk 0:02:55.1]} 6... Qd8 {[%clk
0:02:57.5]} 7. Nc2 {[%clk 0:02:53]} 7... e6 {[%clk 0:02:57.4]} 8. d4 {[%clk
0:02:52.8]} 8... a6 {[%clk 0:02:55.5]} 9. dxc5 {[%clk 0:02:48.2]} 9... Qxd1+
{[%clk 0:02:54.6]} 10. Kxd1 {[%clk 0:02:47.9]} 10... Bxc5 {[%clk 0:02:55.4]} 11.
Be3 {[%clk 0:02:48.1]} 11... Bxe3 {[%clk 0:02:34.1]} 12. Nxe3 {[%clk 0:02:47.7]}
12... Ne4 {[%clk 0:02:31.6]} 13. Ke2 {[%clk 0:02:45.4]} 13... b5 {[%clk
0:02:29.4]} 14. Bd3 {[%clk 0:02:43.5]} 14... Nc5 {[%clk 0:02:29]} 15. Bc2 {[%clk
0:02:43]} 15... Bb7 {[%clk 0:02:27.1]} 16. Rhd1 {[%clk 0:02:39]} 16... Ke7
{[%clk 0:02:24.8]} 17. b4 {[%clk 0:02:29.1]} 17... Nd7 {[%clk 0:02:22.7]} 18. a4
{[%clk 0:02:28.2]} 18... Nde5 {[%clk 0:02:08.5]} 19. Be4 {[%clk 0:02:19.2]}
19... f5 {[%clk 0:01:31.7]} 20. Nxe5 {[%clk 0:02:13.1]} 20... fxe4 {[%clk
0:01:29.8]} 21. Rd7+ {[%clk 0:02:12.3]} 21... Ke8 {[%clk 0:01:28.6]} 22. Rxb7
{[%clk 0:02:09.5]} 22... Nxe5 {[%clk 0:01:27.5]} 23. axb5 {[%clk 0:02:09.2]}
23... Ng6 {[%clk 0:01:11.2]} 24. g3 {[%clk 0:01:51.7]} 24... Ne5 {[%clk
0:01:07.2]} 25. Rxa6 {[%clk 0:01:47.9]} 25... Rd8 {[%clk 0:01:06.6]} 26. Rxe6+
{[%clk 0:01:46.7]} 1-0

[Event "Late-Titled-Tuesday-Blitz-January-30-2024"]
[Site "Chess.com"]
[Date "2024.01.30"]
[Round "6"]
[White "Nouali_Mohamed"]
[Black "cristiano78"]
[Result "1-0"]
[WhiteElo "2471"]
[BlackElo "2290"]
[TimeControl "180+1"]
[EndTime "15:04:17 PST"]
[Termination "Nouali_Mohamed won by checkmate"]

1. e4 {[%clk 0:02:59.6]} 1... c5 {[%clk 0:02:21.6]} 2. Nf3 {[%clk 0:02:59]} 2...
d6 {[%clk 0:02:21.2]} 3. d4 {[%clk 0:02:59.3]} 3... cxd4 {[%clk 0:02:21.5]} 4.
Nxd4 {[%clk 0:03:00.2]} 4... Nf6 {[%clk 0:02:21.5]} 5. Nc3 {[%clk 0:03:00.7]}
5... g6 {[%clk 0:02:21.3]} 6. Be3 {[%clk 0:03:00.7]} 6... Bg7 {[%clk 0:02:20.9]}
7. f3 {[%clk 0:03:01.2]} 7... O-O {[%clk 0:02:20.6]} 8. Qd2 {[%clk 0:03:01.7]}
8... Nc6 {[%clk 0:02:21.2]} 9. Bc4 {[%clk 0:03:02.2]} 9... Bd7 {[%clk
0:02:20.5]} 10. O-O-O {[%clk 0:03:01.8]} 10... Rc8 {[%clk 0:02:20.5]} 11. Bb3
{[%clk 0:03:02.2]} 11... Ne5 {[%clk 0:02:19.8]} 12. Kb1 {[%clk 0:03:02.2]} 12...
Nc4 {[%clk 0:02:18.7]} 13. Bxc4 {[%clk 0:03:02.4]} 13... Rxc4 {[%clk 0:02:19.3]}
14. g4 {[%clk 0:03:02.6]} 14... Be6 {[%clk 0:02:13.9]} 15. h4 {[%clk 0:02:45.7]}
15... Qa5 {[%clk 0:02:10.5]} 16. Nb3 {[%clk 0:02:44.4]} 16... Qc7 {[%clk
0:02:08.7]} 17. h5 {[%clk 0:02:28.6]} 17... a6 {[%clk 0:02:06.5]} 18. Bh6 {[%clk
0:02:26.5]} 18... Rc8 {[%clk 0:01:58.8]} 19. Bxg7 {[%clk 0:02:25]} 19... Kxg7
{[%clk 0:01:57.9]} 20. hxg6 {[%clk 0:02:25.4]} 20... fxg6 {[%clk 0:01:58]} 21.
Qh6+ {[%clk 0:02:14.8]} 21... Kg8 {[%clk 0:01:57.3]} 22. g5 {[%clk 0:01:47.8]}
22... Nh5 {[%clk 0:01:56.3]} 23. Rxh5 {[%clk 0:01:42.9]} 23... gxh5 {[%clk
0:01:50.8]} 24. Qxe6+ {[%clk 0:01:42.2]} 24... Kh8 {[%clk 0:01:48.9]} 25. Nd5
{[%clk 0:01:31.2]} 25... Qd8 {[%clk 0:01:46.2]} 26. Nxe7 {[%clk 0:01:27.2]}
26... Rxc2 {[%clk 0:01:35.7]} 27. Qf6# {[%clk 0:01:26.3]} 1-0

[Event "Late-Titled-Tuesday-Blitz-January-30-2024"]
[Site "Chess.com"]
[Date "2024.01.30"]
[Round "6"]
[White "Practical-Play"]
[Black "Alexander_Donchenko"]
[Result "0-1"]
[WhiteElo "2621"]
[BlackElo "2932"]
[TimeControl "180+1"]
[EndTime "15:04:52 PST"]
[Termination "Alexander_Donchenko won by resignation"]

1. e4 {[%clk 0:03:00.9]} 1... c6 {[%clk 0:02:59.3]} 2. c4 {[%clk 0:03:00]} 2...
d5 {[%clk 0:03:00.2]} 3. cxd5 {[%clk 0:03:00.9]} 3... cxd5 {[%clk 0:03:00.7]} 4.
exd5 {[%clk 0:03:01.8]} 4... Nf6 {[%clk 0:03:01.2]} 5. Nc3 {[%clk 0:03:02.1]}
5... Nxd5 {[%clk 0:03:01.9]} 6. Nf3 {[%clk 0:03:02.6]} 6... Nc6 {[%clk
0:03:02.5]} 7. Bb5 {[%clk 0:03:02.6]} 7... g6 {[%clk 0:03:00.3]} 8. Qa4 {[%clk
0:02:56.3]} 8... Qd6 {[%clk 0:02:58.7]} 9. Ne4 {[%clk 0:02:42.1]} 9... Qe6
{[%clk 0:02:57.4]} 10. Ng5 {[%clk 0:02:30.8]} 10... Qd7 {[%clk 0:02:53.4]} 11.
Nc5 {[%clk 0:02:13.2]} 11... Qc7 {[%clk 0:02:46.5]} 12. Na6 {[%clk 0:01:59.8]}
12... Qe5+ {[%clk 0:02:42.3]} 13. Kf1 {[%clk 0:01:53.9]} 13... Bd7 {[%clk
0:02:38]} 14. d4 {[%clk 0:01:39.5]} 14... Qxd4 {[%clk 0:02:32]} 15. Qxd4 {[%clk
0:01:10]} 15... Nxd4 {[%clk 0:02:32.9]} 16. Bc4 {[%clk 0:01:07.6]} 16... e6
{[%clk 0:02:17.4]} 17. Be3 {[%clk 0:00:19.2]} 17... Nc2 {[%clk 0:02:04]} 18.
Bxd5 {[%clk 0:00:14.9]} 18... Bb5+ {[%clk 0:02:04.2]} 19. Kg1 {[%clk 0:00:13.6]}
19... Bxa6 {[%clk 0:02:04.8]} 20. Bb3 {[%clk 0:00:01.9]} 20... Nxa1 {[%clk
0:02:04]} 21. Ba4+ {[%clk 0:00:01.9]} 0-1

[Event "Late-Titled-Tuesday-Blitz-January-30-2024"]
[Site "Chess.com"]
[Date "2024.01.30"]
[Round "6"]
[White "Arlo2024"]
[Black "koncheto"]
[Result "0-1"]
[WhiteElo "2277"]
[BlackElo "2511"]
[TimeControl "180+1"]
[EndTime "15:05:36 PST"]
[Termination "koncheto won by checkmate"]

1. e4 {[%clk 0:03:00.9]} 1... c5 {[%clk 0:02:45.4]} 2. Nc3 {[%clk 0:03:00.6]}
2... Nc6 {[%clk 0:02:40.6]} 3. g3 {[%clk 0:03:01.5]} 3... g6 {[%clk 0:02:40.5]}
4. Bg2 {[%clk 0:03:02.4]} 4... Bg7 {[%clk 0:02:41.4]} 5. d3 {[%clk 0:03:03.2]}
5... Rb8 {[%clk 0:02:38.7]} 6. Be3 {[%clk 0:03:02.6]} 6... Nd4 {[%clk
0:02:38.3]} 7. Qd2 {[%clk 0:03:03]} 7... d6 {[%clk 0:02:37.1]} 8. Nd1 {[%clk
0:03:02.9]} 8... b5 {[%clk 0:02:36.4]} 9. c3 {[%clk 0:03:03.2]} 9... Nc6 {[%clk
0:02:36.3]} 10. a3 {[%clk 0:03:03.4]} 10... a5 {[%clk 0:02:35.4]} 11. Ne2 {[%clk
0:03:02.8]} 11... b4 {[%clk 0:02:35.3]} 12. axb4 {[%clk 0:03:03.7]} 12... axb4
{[%clk 0:02:36.2]} 13. O-O {[%clk 0:03:03.8]} 13... Nf6 {[%clk 0:02:35.8]} 14.
Bh6 {[%clk 0:03:02.8]} 14... O-O {[%clk 0:02:35.7]} 15. Bxg7 {[%clk 0:03:02.2]}
15... Kxg7 {[%clk 0:02:36.6]} 16. Ne3 {[%clk 0:03:02.2]} 16... Bd7 {[%clk
0:02:23.4]} 17. f4 {[%clk 0:02:54.3]} 17... e6 {[%clk 0:02:12.4]} 18. g4 {[%clk
0:02:51.6]} 18... bxc3 {[%clk 0:02:02.9]} 19. bxc3 {[%clk 0:02:51.2]} 19... Rb3
{[%clk 0:02:03.6]} 20. Nc4 {[%clk 0:02:26.7]} 20... d5 {[%clk 0:01:54.7]} 21. e5
{[%clk 0:02:16.6]} 21... Nxg4 {[%clk 0:01:34.4]} 22. Nd6 {[%clk 0:02:11.6]}
22... Qb6 {[%clk 0:01:20.7]} 23. Ra2 {[%clk 0:02:04.2]} 23... Rb8 {[%clk
0:01:18.4]} 24. f5 {[%clk 0:01:39.3]} 24... Ncxe5 {[%clk 0:01:10.7]} 25. f6+
{[%clk 0:01:30.9]} 25... Kg8 {[%clk 0:01:01.3]} 26. h3 {[%clk 0:01:02.3]} 26...
Qxd6 {[%clk 0:00:58.8]} 27. hxg4 {[%clk 0:00:53.9]} 27... Nxg4 {[%clk
0:00:50.6]} 28. Qg5 {[%clk 0:00:49.4]} 28... Qh2# {[%clk 0:00:49.7]} 0-1

[Event "Late-Titled-Tuesday-Blitz-January-30-2024"]
[Site "Chess.com"]
[Date "2024.01.30"]
[Round "6"]
[White "karinachess1"]
[Black "Beca95"]
[Result "0-1"]
[WhiteElo "2617"]
[BlackElo "2963"]
[TimeControl "180+1"]
[EndTime "15:05:52 PST"]
[Termination "Beca95 won by checkmate"]

1. d4 {[%clk 0:03:00.9]} 1... Nf6 {[%clk 0:02:58.6]} 2. c4 {[%clk 0:03:01.2]}
2... e6 {[%clk 0:02:59]} 3. Nc3 {[%clk 0:03:01.6]} 3... c5 {[%clk 0:02:58]} 4.
d5 {[%clk 0:02:51.4]} 4... exd5 {[%clk 0:02:57.8]} 5. cxd5 {[%clk 0:02:52.3]}
5... d6 {[%clk 0:02:58.4]} 6. Nf3 {[%clk 0:02:52.6]} 6... g6 {[%clk 0:02:58.7]}
7. e4 {[%clk 0:02:52.5]} 7... a6 {[%clk 0:02:58.8]} 8. a4 {[%clk 0:02:52.5]}
8... Bg4 {[%clk 0:02:58.7]} 9. Be2 {[%clk 0:02:52.8]} 9... Bxf3 {[%clk
0:02:58.7]} 10. Bxf3 {[%clk 0:02:53.7]} 10... Bg7 {[%clk 0:02:58.7]} 11. O-O
{[%clk 0:02:54.3]} 11... O-O {[%clk 0:02:59.1]} 12. h3 {[%clk 0:02:51.5]} 12...
Nbd7 {[%clk 0:02:59.2]} 13. Bf4 {[%clk 0:02:52.1]} 13... Ne8 {[%clk 0:02:59]}
14. Be2 {[%clk 0:02:46.7]} 14... Rb8 {[%clk 0:02:56.8]} 15. a5 {[%clk
0:02:44.6]} 15... Qe7 {[%clk 0:02:56.7]} 16. Re1 {[%clk 0:02:39.3]} 16... Nc7
{[%clk 0:02:56.4]} 17. Bf1 {[%clk 0:02:35.8]} 17... b5 {[%clk 0:02:56.1]} 18.
axb6 {[%clk 0:02:35.6]} 18... Rxb6 {[%clk 0:02:56]} 19. Ra2 {[%clk 0:02:10]}
19... Rfb8 {[%clk 0:02:54.8]} 20. Qa1 {[%clk 0:02:10.2]} 20... Bd4 {[%clk
0:02:51.9]} 21. Be3 {[%clk 0:01:53]} 21... Qf6 {[%clk 0:02:50.2]} 22. Nd1 {[%clk
0:01:33.1]} 22... Ne5 {[%clk 0:02:25.6]} 23. Bxa6 {[%clk 0:01:11.8]} 23... Nxa6
{[%clk 0:02:22.4]} 24. Rxa6 {[%clk 0:01:12.7]} 24... Rxa6 {[%clk 0:02:22.5]} 25.
Qxa6 {[%clk 0:01:12.3]} 25... g5 {[%clk 0:02:23]} 26. Qa7 {[%clk 0:00:55.5]}
26... Rb3 {[%clk 0:02:21.7]} 27. Qa4 {[%clk 0:00:40.7]} 27... Rd3 {[%clk
0:02:20.4]} 28. Qc2 {[%clk 0:00:33]} 28... h5 {[%clk 0:02:19.9]} 29. Bxd4 {[%clk
0:00:29.1]} 29... cxd4 {[%clk 0:02:19.1]} 30. b4 {[%clk 0:00:27]} 30... g4
{[%clk 0:02:18.6]} 31. hxg4 {[%clk 0:00:15.5]} 31... hxg4 {[%clk 0:02:19.5]} 32.
b5 {[%clk 0:00:09.4]} 32... Qg5 {[%clk 0:02:19]} 33. Kf1 {[%clk 0:00:07.1]}
33... Qh6 {[%clk 0:01:53.3]} 34. b6 {[%clk 0:00:07.2]} 34... Rd2 {[%clk
0:01:47.8]} 35. Qc8+ {[%clk 0:00:07]} 35... Kg7 {[%clk 0:01:48.3]} 36. Kg1
{[%clk 0:00:07]} 36... g3 {[%clk 0:01:43.5]} 37. Qf5 {[%clk 0:00:05.7]} 37...
Qh2+ {[%clk 0:01:42]} 38. Kf1 {[%clk 0:00:05.2]} 38... Qh1# {[%clk 0:01:42.4]}
0-1

[Event "Late-Titled-Tuesday-Blitz-January-30-2024"]
[Site "Chess.com"]
[Date "2024.01.30"]
[Round "6"]
[White "ContrVersia"]
[Black "Polish_fighter3000"]
[Result "0-1"]
[WhiteElo "2841"]
[BlackElo "3040"]
[TimeControl "180+1"]
[EndTime "15:06:06 PST"]
[Termination "Polish_fighter3000 won by resignation"]

1. Nf3 {[%clk 0:03:00.6]} 1... b5 {[%clk 0:02:51.8]} 2. e4 {[%clk 0:02:59.1]}
2... Bb7 {[%clk 0:02:51.5]} 3. Bxb5 {[%clk 0:02:59.1]} 3... Bxe4 {[%clk
0:02:52]} 4. O-O {[%clk 0:02:59.6]} 4... e6 {[%clk 0:02:50.9]} 5. Re1 {[%clk
0:02:59.6]} 5... Bb7 {[%clk 0:02:50.6]} 6. d4 {[%clk 0:03:00]} 6... Nf6 {[%clk
0:02:50.3]} 7. c4 {[%clk 0:03:00.3]} 7... Be7 {[%clk 0:02:50.3]} 8. Nc3 {[%clk
0:03:00.5]} 8... O-O {[%clk 0:02:50.6]} 9. d5 {[%clk 0:03:00.7]} 9... c6 {[%clk
0:02:47.2]} 10. dxc6 {[%clk 0:02:48.1]} 10... dxc6 {[%clk 0:02:48.1]} 11. Ba4
{[%clk 0:02:47.5]} 11... Nbd7 {[%clk 0:02:46]} 12. Bf4 {[%clk 0:02:43.7]} 12...
Qb6 {[%clk 0:02:42.4]} 13. Qe2 {[%clk 0:02:39.6]} 13... Rfd8 {[%clk 0:02:39.5]}
14. a3 {[%clk 0:02:37.2]} 14... c5 {[%clk 0:02:37.8]} 15. Rab1 {[%clk
0:02:30.9]} 15... Rac8 {[%clk 0:02:33.1]} 16. h3 {[%clk 0:02:29.9]} 16... h6
{[%clk 0:02:30.1]} 17. Be3 {[%clk 0:02:28.8]} 17... Qa5 {[%clk 0:02:11.4]} 18.
Bc2 {[%clk 0:02:20]} 18... Bf8 {[%clk 0:01:52.4]} 19. Bd2 {[%clk 0:02:03.8]}
19... Qc7 {[%clk 0:01:50.7]} 20. Bd3 {[%clk 0:01:58.9]} 20... Bxf3 {[%clk
0:01:48.1]} 21. gxf3 {[%clk 0:01:54.5]} 21... Nh5 {[%clk 0:01:43.8]} 22. Bc2
{[%clk 0:01:48.7]} 22... Ndf6 {[%clk 0:01:41.1]} 23. Be3 {[%clk 0:01:38.9]}
23... Nf4 {[%clk 0:01:20.8]} 24. Qf1 {[%clk 0:01:37.8]} 24... a6 {[%clk
0:01:16.6]} 25. Rbd1 {[%clk 0:01:34.7]} 25... g6 {[%clk 0:01:14.5]} 26. Rxd8
{[%clk 0:01:31.3]} 26... Rxd8 {[%clk 0:01:15.4]} 27. Rd1 {[%clk 0:01:31.7]}
27... Rb8 {[%clk 0:01:15.2]} 28. b3 {[%clk 0:01:30.3]} 28... Qe5 {[%clk
0:01:06.7]} 29. Ne2 {[%clk 0:01:28.9]} 29... N6h5 {[%clk 0:00:57.4]} 30. Nxf4
{[%clk 0:01:20.8]} 30... Nxf4 {[%clk 0:00:58.3]} 31. Rd7 {[%clk 0:01:20.9]}
31... Bd6 {[%clk 0:00:53.6]} 32. Qd1 {[%clk 0:01:15.6]} 32... Nxh3+ {[%clk
0:00:37.5]} 33. Kf1 {[%clk 0:01:15.4]} 33... Bf8 {[%clk 0:00:37.7]} 34. Qd2
{[%clk 0:01:10.2]} 34... Qh2 {[%clk 0:00:33]} 35. Ra7 {[%clk 0:01:02.1]} 35...
Qh1+ {[%clk 0:00:32]} 36. Ke2 {[%clk 0:00:59]} 36... Ng1+ {[%clk 0:00:32.9]} 0-1